[Event "Titled Tuesday Blitz October 25 Late 2022"]
[White "Yurovskykh, Oleksandr"]
[Black "Faizrakhmanov, Ramil"]
[WhiteFideId "14134020"]
[BlackFideId "24103209"]
[WhiteElo "2303"]
[BlackElo "2421"]
[Result "1-0"]
[Round "09"]
[TimeControl "180+1"]
[Date "2022.10.26"]
[WhiteClock "0:00:06"]
[BlackClock "0:00:07"]

1. d4 {[%clk 0:02:54]}  Nf6 {[%clk 0:02:59]} 2. Nf3 {[%clk 0:02:53]}  d5 {[%clk 0:02:58]} 3. Bf4 {[%clk 0:02:51]}  c5 {[%clk 0:02:58]} 4. e3 {[%clk 0:02:51]}  Nc6 {[%clk 0:02:59]} 5. c3 {[%clk 0:02:51]}  Bf5 {[%clk 0:02:59]} 6. Nbd2 {[%clk 0:02:50]}  e6 {[%clk 0:02:59]} 7. Qb3 {[%clk 0:02:50]}  Qc8 {[%clk 0:02:58]} 8. Be2 {[%clk 0:02:47]}  h6 {[%clk 0:02:57]} 9. h3 {[%clk 0:02:46]}  Be7 {[%clk 0:02:58]} 10. O-O {[%clk 0:02:46]}  O-O {[%clk 0:02:58]} 11. Ne5 {[%clk 0:02:46]}  a6 {[%clk 0:02:57]} 12. Rfe1 {[%clk 0:02:39]}  b5 {[%clk 0:02:54]} 13. Qd1 {[%clk 0:02:29]}  c4 {[%clk 0:02:52]} 14. Bf3 {[%clk 0:02:28]}  Nxe5 {[%clk 0:02:41]} 15. Bxe5 {[%clk 0:02:29]}  Ne4 {[%clk 0:02:36]} 16. Nxe4 {[%clk 0:02:21]}  dxe4 {[%clk 0:02:35]} 17. Be2 {[%clk 0:02:20]}  b4 {[%clk 0:02:32]} 18. Qa4 {[%clk 0:02:17]}  Qb7 {[%clk 0:02:17]} 19. Bxc4 {[%clk 0:01:57]}  Rfc8 {[%clk 0:02:17]} 20. Qb3 {[%clk 0:01:55]}  Qc6 {[%clk 0:02:15]} 21. Be2 {[%clk 0:01:46]}  bxc3 {[%clk 0:02:14]} 22. bxc3 {[%clk 0:01:19]}  Qxc3 {[%clk 0:02:14]} 23. Qxc3 {[%clk 0:01:20]}  Rxc3 {[%clk 0:02:14]} 24. Rec1 {[%clk 0:01:21]}  Rac8 {[%clk 0:02:13]} 25. Rxc3 {[%clk 0:01:21]}  Rxc3 {[%clk 0:02:14]} 26. Bxa6 {[%clk 0:01:19]}  f6 {[%clk 0:02:13]} 27. Bg3 {[%clk 0:01:12]}  Ba3 {[%clk 0:02:13]} 28. Bb5 {[%clk 0:01:04]}  Bg6 {[%clk 0:02:10]} 29. Ba4 {[%clk 0:01:02]}  Bf7 {[%clk 0:02:09]} 30. Bb3 {[%clk 0:01:02]}  g5 {[%clk 0:01:56]} 31. Bb8 {[%clk 0:00:59]}  h5 {[%clk 0:01:53]} 32. Ba7 {[%clk 0:00:59]}  e5 {[%clk 0:01:49]} 33. Bxf7+ {[%clk 0:00:50]}  Kxf7 {[%clk 0:01:50]} 34. dxe5 {[%clk 0:00:47]}  fxe5 {[%clk 0:01:51]} 35. Bb8 {[%clk 0:00:46]}  Ke6 {[%clk 0:01:50]} 36. Rb1 {[%clk 0:00:45]}  Bc5 {[%clk 0:01:40]} 37. a4 {[%clk 0:00:37]}  g4 {[%clk 0:01:27]} 38. hxg4 {[%clk 0:00:36]}  hxg4 {[%clk 0:01:28]} 39. Kh2 {[%clk 0:00:27]}  Rc2 {[%clk 0:00:54]} 40. Kg3 {[%clk 0:00:25]}  Be7 {[%clk 0:00:46]} 41. Rb5 {[%clk 0:00:23]}  Bf6 {[%clk 0:00:45]} 42. a5 {[%clk 0:00:21]}  Ra2 {[%clk 0:00:46]} 43. Bc7 {[%clk 0:00:20]}  Kf5 {[%clk 0:00:45]} 44. Rb6 {[%clk 0:00:17]}  Ra3 {[%clk 0:00:38]} 45. a6 {[%clk 0:00:16]}  Bg5 {[%clk 0:00:39]} 46. Kh2 {[%clk 0:00:07]}  Ra2 {[%clk 0:00:38]} 47. Rb5 {[%clk 0:00:06]}  Rxa6 {[%clk 0:00:33]} 48. Bxe5 {[%clk 0:00:07]}  Kg6 {[%clk 0:00:32]} 49. Bf4 {[%clk 0:00:07]}  Bxf4+ {[%clk 0:00:27]} 50. exf4 {[%clk 0:00:08]}  Ra3 {[%clk 0:00:23]} 51. Re5 {[%clk 0:00:08]}  g3+ {[%clk 0:00:22]} 52. fxg3 {[%clk 0:00:08]}  Re3 {[%clk 0:00:20]} 53. Kh3 {[%clk 0:00:08]}  Kf6 {[%clk 0:00:20]} 54. Kh4 {[%clk 0:00:08]}  Re2 {[%clk 0:00:20]} 55. Kg4 {[%clk 0:00:09]}  Re3 {[%clk 0:00:17]} 56. Re8 {[%clk 0:00:08]}  Re2 {[%clk 0:00:17]} 57. Kh3 {[%clk 0:00:07]}  Re1 {[%clk 0:00:17]} 58. Kh2 {[%clk 0:00:08]}  Kf5 {[%clk 0:00:17]} 59. Re5+ {[%clk 0:00:07]}  Kf6 {[%clk 0:00:16]} 60. g4 {[%clk 0:00:08]}  e3 {[%clk 0:00:15]} 61. Kg3 {[%clk 0:00:08]}  e2 {[%clk 0:00:16]} 62. Re4 {[%clk 0:00:06]}  Kg6 {[%clk 0:00:15]} 63. Kf2 {[%clk 0:00:06]}  Rf1+ {[%clk 0:00:13]} 64. Kxe2 {[%clk 0:00:06]}  Ra1 {[%clk 0:00:14]} 65. Kf2 {[%clk 0:00:06]}  Ra3 {[%clk 0:00:14]} 66. Re3 {[%clk 0:00:07]}  Ra4 {[%clk 0:00:13]} 67. Kf3 {[%clk 0:00:07]}  Ra6 {[%clk 0:00:12]} 68. g3 {[%clk 0:00:08]}  Rb6 {[%clk 0:00:12]} 69. Rd3 {[%clk 0:00:09]}  Ra6 {[%clk 0:00:13]} 70. Re3 {[%clk 0:00:08]}  Rb6 {[%clk 0:00:13]} 71. Re5 {[%clk 0:00:07]}  Kf6 {[%clk 0:00:12]} 72. Kg2 {[%clk 0:00:07]}  Rb1 {[%clk 0:00:11]} 73. Rf5+ {[%clk 0:00:04]}  Kg6 {[%clk 0:00:12]} 74. Ra5 {[%clk 0:00:04]}  Kf6 {[%clk 0:00:12]} 75. Kf3 {[%clk 0:00:04]}  Rb3+ {[%clk 0:00:12]} 76. Kg2 {[%clk 0:00:02]}  Rb1 {[%clk 0:00:12]} 77. g5+ {[%clk 0:00:02]}  Kg6 {[%clk 0:00:12]} 78. g4 {[%clk 0:00:02]}  Rb4 {[%clk 0:00:09]} 79. Kg3 {[%clk 0:00:02]}  Rb1 {[%clk 0:00:09]} 80. Ra6+ {[%clk 0:00:02]}  Kg7 {[%clk 0:00:09]} 81. f5 {[%clk 0:00:03]}  Rb2 {[%clk 0:00:08]} 82. g6 {[%clk 0:00:02]}  Kh6 {[%clk 0:00:09]} 83. Ra7 {[%clk 0:00:02]}  Rb3+ {[%clk 0:00:08]} 84. Kh4 {[%clk 0:00:02]}  Rb7 {[%clk 0:00:06]} 85. Ra6 {[%clk 0:00:02]}  Rb1 {[%clk 0:00:05]} 86. g5+ {[%clk 0:00:02]}  Kg7 {[%clk 0:00:06]} 87. Ra7+ {[%clk 0:00:02]}  Kg8 {[%clk 0:00:06]} 88. f6 {[%clk 0:00:03]}  Rb8 {[%clk 0:00:05]} 89. Rg7+ {[%clk 0:00:03]}  Kh8 {[%clk 0:00:06]} 90. Rh7+ {[%clk 0:00:03]}  Kg8 {[%clk 0:00:06]} 91. Ra7 {[%clk 0:00:04]}  Kh8 {[%clk 0:00:06]} 92. Kh5 {[%clk 0:00:05]}  Rc8 {[%clk 0:00:06]} 93. g7+ {[%clk 0:00:05]}  Kh7 {[%clk 0:00:06]} 94. g6+ {[%clk 0:00:05]}  Kg8 {[%clk 0:00:06]} 95. Kh6 {[%clk 0:00:05]}  Rf8 {[%clk 0:00:06]} 96. gxf8=Q+ {[%clk 0:00:05]}  Kxf8 {[%clk 0:00:07]} 97. Ra8# {[%clk 0:00:06]} 1-0


[Site "https://www.chess.com"]

[Event "Titled Tuesday Blitz October 25 Late 2022"]
[White "Zhang, Alan"]
[Black "Prohorov, Olexandr"]
[WhiteFideId "30936870"]
[BlackFideId "14105578"]
[WhiteElo "2067"]
[BlackElo "1993"]
[Result "0-1"]
[Round "09"]
[TimeControl "180+1"]
[Date "2022.10.26"]
[WhiteClock "0:00:03"]
[BlackClock "0:02:25"]

1. e4 {[%clk 0:00:15]}  c5 {[%clk 0:03:00]} 2. Nf3 {[%clk 0:00:16]}  e6 {[%clk 0:02:28]} 3. d4 {[%clk 0:00:16]}  cxd4 {[%clk 0:02:28]} 4. Nxd4 {[%clk 0:00:17]}  Qb6 {[%clk 0:02:28]} 5. a4 {[%clk 0:00:11]}  Bc5 {[%clk 0:02:28]} 6. a5 {[%clk 0:00:05]}  Qc7 {[%clk 0:02:28]} 7. Nb3 {[%clk 0:00:04]}  Be7 {[%clk 0:02:28]} 8. Nc3 {[%clk 0:00:04]}  Nf6 {[%clk 0:02:28]} 9. Bd2 {[%clk 0:00:03]}  Nc6 {[%clk 0:02:28]} 10. Bd3 {[%clk 0:00:04]}  d5 {[%clk 0:02:27]} 11. exd5 {[%clk 0:00:03]}  exd5 {[%clk 0:02:28]} 12. Qe2 {[%clk 0:00:04]}  O-O {[%clk 0:02:27]} 13. O-O {[%clk 0:00:03]}  Re8 {[%clk 0:02:27]} 14. Qf3 {[%clk 0:00:03]}  Nb4 {[%clk 0:02:25]} 0-1


[Site "https://www.chess.com"]

[Event "Titled Tuesday Blitz October 25 Late 2022"]
[White "Ali Abdullahi, Farah"]
[Black "Bilan, Danila"]
[WhiteFideId "16100212"]
[BlackFideId "24161918"]
[WhiteElo "2256"]
[BlackElo "2203"]
[Result "0-1"]
[Round "10"]
[TimeControl "180+1"]
[Date "2022.10.26"]
[WhiteClock "0:01:10"]
[BlackClock "0:00:04"]

1. b3 {[%clk 0:02:58]}  d5 {[%clk 0:02:57]} 2. Bb2 {[%clk 0:02:59]}  Nf6 {[%clk 0:02:57]} 3. Nf3 {[%clk 0:02:59]}  c5 {[%clk 0:02:57]} 4. e3 {[%clk 0:03:00]}  Nc6 {[%clk 0:02:57]} 5. Bb5 {[%clk 0:03:00]}  Qb6 {[%clk 0:02:57]} 6. Bxc6+ {[%clk 0:03:00]}  Qxc6 {[%clk 0:02:58]} 7. Ne5 {[%clk 0:03:00]}  Qc7 {[%clk 0:02:58]} 8. O-O {[%clk 0:02:58]}  g6 {[%clk 0:02:58]} 9. f4 {[%clk 0:02:58]}  Bg7 {[%clk 0:02:58]} 10. d3 {[%clk 0:02:59]}  Ng4 {[%clk 0:02:50]} 11. Qf3 {[%clk 0:02:31]}  O-O {[%clk 0:02:33]} 12. Qxd5 {[%clk 0:02:28]}  Nxe3 {[%clk 0:02:30]} 13. Qf3 {[%clk 0:02:24]}  Nxc2 {[%clk 0:01:15]} 14. Nd2 {[%clk 0:02:23]}  Nxa1 {[%clk 0:01:12]} 15. Rxa1 {[%clk 0:02:24]}  Rd8 {[%clk 0:00:58]} 16. Ndc4 {[%clk 0:02:22]}  Be6 {[%clk 0:00:56]} 17. a4 {[%clk 0:02:17]}  f6 {[%clk 0:00:48]} 18. Ng4 {[%clk 0:02:10]}  Qd7 {[%clk 0:00:47]} 19. Nf2 {[%clk 0:02:08]}  Bd5 {[%clk 0:00:42]} 20. Qe3 {[%clk 0:02:05]}  Re8 {[%clk 0:00:40]} 21. Qxc5 {[%clk 0:02:05]}  b6 {[%clk 0:00:34]} 22. Qd4 {[%clk 0:02:02]}  Rad8 {[%clk 0:00:33]} 23. Qe3 {[%clk 0:02:00]}  Be6 {[%clk 0:00:26]} 24. h3 {[%clk 0:01:58]}  Bxc4 {[%clk 0:00:24]} 25. dxc4 {[%clk 0:01:57]}  Qd2 {[%clk 0:00:23]} 26. Qc3 {[%clk 0:01:45]}  Qxc3 {[%clk 0:00:19]} 27. Bxc3 {[%clk 0:01:45]}  f5 {[%clk 0:00:17]} 28. Bxg7 {[%clk 0:01:40]}  Kxg7 {[%clk 0:00:17]} 29. a5 {[%clk 0:01:41]}  e5 {[%clk 0:00:12]} 30. axb6 {[%clk 0:01:39]}  axb6 {[%clk 0:00:12]} 31. Ra7+ {[%clk 0:01:38]}  Kg8 {[%clk 0:00:10]} 32. h4 {[%clk 0:01:36]}  exf4 {[%clk 0:00:09]} 33. Nh3 {[%clk 0:01:36]}  Rd4 {[%clk 0:00:08]} 34. Ng5 {[%clk 0:01:36]}  Re2 {[%clk 0:00:05]} 35. Nxh7 {[%clk 0:01:35]}  Rdd2 {[%clk 0:00:05]} 36. Nf6+ {[%clk 0:01:35]}  Kf8 {[%clk 0:00:06]} 37. Nh7+ {[%clk 0:01:33]}  Ke8 {[%clk 0:00:06]} 38. Nf6+ {[%clk 0:01:34]}  Kd8 {[%clk 0:00:06]} 39. Nd5 {[%clk 0:01:21]}  Rxg2+ {[%clk 0:00:06]} 40. Kf1 {[%clk 0:01:21]}  f3 {[%clk 0:00:04]} 41. Ra8+ {[%clk 0:01:15]}  Kd7 {[%clk 0:00:03]} 42. Nxb6+ {[%clk 0:01:15]}  Kc6 {[%clk 0:00:03]} 43. Ra1 {[%clk 0:01:13]}  Kxb6 {[%clk 0:00:03]} 44. b4 {[%clk 0:01:12]}  Rdf2+ {[%clk 0:00:03]} 45. Ke1 {[%clk 0:01:12]}  Re2+ {[%clk 0:00:04]} 46. Kf1 {[%clk 0:01:12]}  Ra2 {[%clk 0:00:04]} 47. c5+ {[%clk 0:01:11]}  Kb5 {[%clk 0:00:04]} 48. Rc1 {[%clk 0:01:12]}  Rh2 {[%clk 0:00:03]} 49. Kg1 {[%clk 0:01:10]}  Rag2+ {[%clk 0:00:03]} 50. Kf1 {[%clk 0:01:10]}  Rh1# {[%clk 0:00:04]} 0-1


[Site "https://www.chess.com"]

[Event "Titled Tuesday Blitz October 25 Late 2022"]
[White "Annaberdiyev, Babageldi"]
[Black "Thomforde-Toates, Noah"]
[WhiteFideId "14000385"]
[BlackFideId "30951992"]
[WhiteElo "2332"]
[BlackElo "2657"]
[Result "1-0"]
[Round "10"]
[TimeControl "180+1"]
[Date "2022.10.26"]
[WhiteClock "0:01:02"]
[BlackClock "0:00:38"]

1. e4 {[%clk 0:03:00]}  c5 {[%clk 0:02:59]} 2. Nf3 {[%clk 0:03:00]}  g6 {[%clk 0:02:59]} 3. d4 {[%clk 0:02:59]}  cxd4 {[%clk 0:03:00]} 4. Qxd4 {[%clk 0:02:59]}  Nf6 {[%clk 0:03:00]} 5. e5 {[%clk 0:03:00]}  Nc6 {[%clk 0:03:00]} 6. Qh4 {[%clk 0:03:01]}  Nd5 {[%clk 0:03:00]} 7. Bc4 {[%clk 0:03:00]}  Nb6 {[%clk 0:02:57]} 8. Bb3 {[%clk 0:03:00]}  d5 {[%clk 0:02:53]} 9. O-O {[%clk 0:02:37]}  e6 {[%clk 0:02:53]} 10. Bg5 {[%clk 0:02:34]}  Be7 {[%clk 0:02:53]} 11. Bxe7 {[%clk 0:02:33]}  Qxe7 {[%clk 0:02:52]} 12. Qh6 {[%clk 0:02:31]}  Bd7 {[%clk 0:02:40]} 13. Nc3 {[%clk 0:02:30]}  Na5 {[%clk 0:02:36]} 14. Rfe1 {[%clk 0:02:22]}  Qf8 {[%clk 0:02:32]} 15. Qh4 {[%clk 0:02:15]}  Qe7 {[%clk 0:02:32]} 16. Qh6 {[%clk 0:02:15]}  Qf8 {[%clk 0:02:32]} 17. Qf4 {[%clk 0:02:10]}  Rc8 {[%clk 0:02:31]} 18. Qf6 {[%clk 0:02:03]}  Bc6 {[%clk 0:02:23]} 19. Rad1 {[%clk 0:01:58]}  h6 {[%clk 0:02:18]} 20. h4 {[%clk 0:01:51]}  Rg8 {[%clk 0:02:15]} 21. Bxd5 {[%clk 0:01:31]}  Nxd5 {[%clk 0:01:15]} 22. Nxd5 {[%clk 0:01:30]}  Bxd5 {[%clk 0:01:15]} 23. Rxd5 {[%clk 0:01:30]}  exd5 {[%clk 0:01:08]} 24. e6 {[%clk 0:01:31]}  fxe6 {[%clk 0:01:04]} 25. Rxe6+ {[%clk 0:01:25]}  Kd7 {[%clk 0:01:02]} 26. Ne5+ {[%clk 0:01:25]}  Kc7 {[%clk 0:01:00]} 27. Re7+ {[%clk 0:01:22]}  Kb8 {[%clk 0:00:57]} 28. Nd7+ {[%clk 0:01:20]}  Ka8 {[%clk 0:00:57]} 29. Nxf8 {[%clk 0:01:20]}  Rgxf8 {[%clk 0:00:56]} 30. Qxg6 {[%clk 0:01:21]}  Nc4 {[%clk 0:00:55]} 31. b3 {[%clk 0:01:19]}  Na3 {[%clk 0:00:55]} 32. Qg7 {[%clk 0:01:08]}  Rg8 {[%clk 0:00:47]} 33. Qf7 {[%clk 0:01:06]}  Rb8 {[%clk 0:00:37]} 34. Rxb7 {[%clk 0:01:05]}  Rxb7 {[%clk 0:00:38]} 35. Qxg8+ {[%clk 0:01:04]}  Rb8 {[%clk 0:00:38]} 36. Qxd5+ {[%clk 0:01:05]}  Rb7 {[%clk 0:00:38]} 37. c4 {[%clk 0:01:02]} 1-0


[Site "https://www.chess.com"]

[Event "Titled Tuesday Blitz October 25 Late 2022"]
[White "Arbunic Castro, Giovanna"]
[Black "Broca Jimenez, Fernando"]
[WhiteFideId "3400549"]
[BlackFideId "5104742"]
[WhiteElo "1886"]
[BlackElo "2062"]
[Result "0-1"]
[Round "10"]
[TimeControl "180+1"]
[Date "2022.10.26"]
[WhiteClock "0:00:08"]
[BlackClock "0:00:14"]

1. e4 {[%clk 0:03:00]}  c5 {[%clk 0:02:05]} 2. g3 {[%clk 0:02:58]}  g6 {[%clk 0:02:05]} 3. Bg2 {[%clk 0:02:59]}  Bg7 {[%clk 0:02:05]} 4. Ne2 {[%clk 0:02:59]}  Nc6 {[%clk 0:02:05]} 5. c3 {[%clk 0:02:59]}  e6 {[%clk 0:02:03]} 6. O-O {[%clk 0:02:59]}  Nge7 {[%clk 0:02:04]} 7. d4 {[%clk 0:02:57]}  cxd4 {[%clk 0:02:03]} 8. cxd4 {[%clk 0:02:55]}  d5 {[%clk 0:02:04]} 9. e5 {[%clk 0:02:54]}  O-O {[%clk 0:02:03]} 10. Nbc3 {[%clk 0:02:52]}  Qb6 {[%clk 0:02:03]} 11. Na4 {[%clk 0:02:48]}  Qc7 {[%clk 0:02:02]} 12. Bg5 {[%clk 0:02:42]}  h6 {[%clk 0:01:52]} 13. Bf6 {[%clk 0:02:41]}  Kh7 {[%clk 0:01:32]} 14. Bxg7 {[%clk 0:02:35]}  Kxg7 {[%clk 0:01:32]} 15. Rc1 {[%clk 0:02:36]}  Bd7 {[%clk 0:01:26]} 16. Nc5 {[%clk 0:02:28]}  b6 {[%clk 0:01:17]} 17. Nxd7 {[%clk 0:02:25]}  Qxd7 {[%clk 0:01:18]} 18. Qd2 {[%clk 0:02:24]}  Rac8 {[%clk 0:01:12]} 19. Rc2 {[%clk 0:02:16]}  Na5 {[%clk 0:00:59]} 20. Rfc1 {[%clk 0:02:05]}  Rxc2 {[%clk 0:00:58]} 21. Rxc2 {[%clk 0:02:01]}  Rc8 {[%clk 0:00:58]} 22. Qc1 {[%clk 0:01:55]}  Rc6 {[%clk 0:00:53]} 23. b3 {[%clk 0:01:34]}  Qc7 {[%clk 0:00:45]} 24. Rxc6 {[%clk 0:01:31]}  Qxc6 {[%clk 0:00:46]} 25. Qxc6 {[%clk 0:01:25]}  Nexc6 {[%clk 0:00:47]} 26. Bf1 {[%clk 0:01:19]}  Nb4 {[%clk 0:00:46]} 27. Nc3 {[%clk 0:01:15]}  Nac6 {[%clk 0:00:34]} 28. a3 {[%clk 0:01:13]}  Nc2 {[%clk 0:00:29]} 29. f4 {[%clk 0:00:49]}  N2xd4 {[%clk 0:00:25]} 30. b4 {[%clk 0:00:46]}  Nc2 {[%clk 0:00:20]} 31. Nb1 {[%clk 0:00:44]}  N6d4 {[%clk 0:00:19]} 32. Kf2 {[%clk 0:00:41]}  Kf8 {[%clk 0:00:20]} 33. Bd3 {[%clk 0:00:40]}  Ke7 {[%clk 0:00:19]} 34. b5 {[%clk 0:00:31]}  Kd7 {[%clk 0:00:18]} 35. a4 {[%clk 0:00:29]}  Kc7 {[%clk 0:00:18]} 36. Nc3 {[%clk 0:00:16]}  Nb4 {[%clk 0:00:16]} 37. Bb1 {[%clk 0:00:13]}  Nb3 {[%clk 0:00:16]} 38. Ke3 {[%clk 0:00:10]}  d4+ {[%clk 0:00:13]} 39. Ke4 {[%clk 0:00:08]}  dxc3 {[%clk 0:00:14]} 0-1


[Site "https://www.chess.com"]

[Event "Titled Tuesday Blitz October 25 Late 2022"]
[White "Banzea, Alexandru-Bogdan"]
[Black "Haszon, David"]
[WhiteFideId "1232622"]
[BlackFideId "733610"]
[WhiteElo "2294"]
[BlackElo "2211"]
[Result "0-1"]
[Round "10"]
[TimeControl "180+1"]
[Date "2022.10.26"]
[WhiteClock "0:00:01"]
[BlackClock "0:01:03"]

1. d4 {[%clk 0:03:00]}  Nf6 {[%clk 0:02:59]} 2. Bf4 {[%clk 0:03:00]}  e6 {[%clk 0:02:56]} 3. e3 {[%clk 0:02:57]}  d5 {[%clk 0:02:56]} 4. Nf3 {[%clk 0:02:58]}  c5 {[%clk 0:02:57]} 5. Nbd2 {[%clk 0:02:50]}  Nc6 {[%clk 0:02:53]} 6. c3 {[%clk 0:02:49]}  Bd6 {[%clk 0:02:54]} 7. Bg3 {[%clk 0:02:18]}  O-O {[%clk 0:02:52]} 8. Bd3 {[%clk 0:02:17]}  Qe7 {[%clk 0:02:52]} 9. Ne5 {[%clk 0:02:15]}  Nd7 {[%clk 0:02:47]} 10. Nxd7 {[%clk 0:02:13]}  Qxd7 {[%clk 0:02:45]} 11. O-O {[%clk 0:02:02]}  e5 {[%clk 0:02:35]} 12. dxe5 {[%clk 0:01:55]}  Bxe5 {[%clk 0:02:32]} 13. Bxe5 {[%clk 0:01:56]}  Nxe5 {[%clk 0:02:33]} 14. Bxh7+ {[%clk 0:01:55]}  Kxh7 {[%clk 0:02:27]} 15. Qh5+ {[%clk 0:01:54]}  Kg8 {[%clk 0:02:26]} 16. Qxe5 {[%clk 0:01:54]}  Re8 {[%clk 0:02:23]} 17. Qf4 {[%clk 0:01:34]}  a5 {[%clk 0:02:15]} 18. Rad1 {[%clk 0:01:25]}  Ra6 {[%clk 0:02:15]} 19. Nf3 {[%clk 0:01:21]}  Rf6 {[%clk 0:02:10]} 20. Qg5 {[%clk 0:01:06]}  Rf5 {[%clk 0:02:06]} 21. Qg3 {[%clk 0:01:02]}  Re6 {[%clk 0:01:51]} 22. Qb8 {[%clk 0:00:37]}  Rxf3 {[%clk 0:01:17]} 23. gxf3 {[%clk 0:00:03]}  Rg6+ {[%clk 0:01:16]} 24. Qg3 {[%clk 0:00:01]}  Qf5 {[%clk 0:01:07]} 25. e4 {[%clk 0:00:01]}  Qxf3 {[%clk 0:01:03]} 0-1


[Site "https://www.chess.com"]

[Event "Titled Tuesday Blitz October 25 Late 2022"]
[White "Barria Zuniga, Daniel"]
[Black "Korchmar, Vasiliy"]
[WhiteFideId "3400816"]
[BlackFideId "24131750"]
[WhiteElo "2414"]
[BlackElo "2370"]
[Result "0-1"]
[Round "10"]
[TimeControl "180+1"]
[Date "2022.10.26"]
[WhiteClock "0:00:09"]
[BlackClock "0:01:40"]

1. d4 {[%clk 0:03:00]}  d5 {[%clk 0:02:59]} 2. c4 {[%clk 0:02:59]}  c6 {[%clk 0:03:00]} 3. Nf3 {[%clk 0:02:59]}  Nf6 {[%clk 0:03:00]} 4. Nc3 {[%clk 0:03:00]}  e6 {[%clk 0:03:00]} 5. Bg5 {[%clk 0:02:59]}  Nbd7 {[%clk 0:03:00]} 6. e3 {[%clk 0:02:59]}  Be7 {[%clk 0:03:01]} 7. Qc2 {[%clk 0:02:59]}  O-O {[%clk 0:03:01]} 8. O-O-O {[%clk 0:02:59]}  a5 {[%clk 0:02:46]} 9. Kb1 {[%clk 0:02:57]}  a4 {[%clk 0:02:45]} 10. h3 {[%clk 0:02:52]}  a3 {[%clk 0:02:37]} 11. b3 {[%clk 0:02:50]}  c5 {[%clk 0:02:36]} 12. dxc5 {[%clk 0:02:19]}  Nxc5 {[%clk 0:02:33]} 13. cxd5 {[%clk 0:02:09]}  Nxd5 {[%clk 0:02:25]} 14. Nxd5 {[%clk 0:02:03]}  exd5 {[%clk 0:02:26]} 15. Bxe7 {[%clk 0:01:53]}  Qxe7 {[%clk 0:02:27]} 16. Rxd5 {[%clk 0:01:53]}  b6 {[%clk 0:02:26]} 17. Bc4 {[%clk 0:01:50]}  Bb7 {[%clk 0:02:23]} 18. Re5 {[%clk 0:01:48]}  Qf6 {[%clk 0:02:24]} 19. Rf5 {[%clk 0:01:25]}  Qg6 {[%clk 0:02:23]} 20. Nh4 {[%clk 0:00:38]}  Qh6 {[%clk 0:02:19]} 21. Rf4 {[%clk 0:00:31]}  Qxf4 {[%clk 0:02:11]} 22. exf4 {[%clk 0:00:29]}  Be4 {[%clk 0:02:12]} 23. Rd1 {[%clk 0:00:26]}  Rad8 {[%clk 0:02:03]} 24. Rxd8 {[%clk 0:00:20]}  Rxd8 {[%clk 0:02:04]} 25. Kc1 {[%clk 0:00:21]}  Bxc2 {[%clk 0:02:03]} 26. Kxc2 {[%clk 0:00:22]}  Ne4 {[%clk 0:02:02]} 27. Nf3 {[%clk 0:00:18]}  Kf8 {[%clk 0:01:55]} 28. b4 {[%clk 0:00:17]}  f6 {[%clk 0:01:50]} 29. Kb3 {[%clk 0:00:15]}  Nd2+ {[%clk 0:01:48]} 30. Nxd2 {[%clk 0:00:14]}  Rxd2 {[%clk 0:01:49]} 31. Kxa3 {[%clk 0:00:15]}  Rxf2 {[%clk 0:01:49]} 32. Bd5 {[%clk 0:00:15]}  Rxf4 {[%clk 0:01:47]} 33. Ka4 {[%clk 0:00:15]}  Ke7 {[%clk 0:01:45]} 34. Kb5 {[%clk 0:00:14]}  Kd6 {[%clk 0:01:46]} 35. Bc6 {[%clk 0:00:10]}  Rxb4+ {[%clk 0:01:39]} 36. Kxb4 {[%clk 0:00:09]}  Kxc6 {[%clk 0:01:40]} 0-1


[Site "https://www.chess.com"]

[Event "Titled Tuesday Blitz October 25 Late 2022"]
[White "Bernat, David"]
[Black "Estrada Nieto, Julian"]
[WhiteFideId "2099225"]
[BlackFideId "5101018"]
[WhiteElo "2324"]
[BlackElo "2252"]
[Result "0-1"]
[Round "10"]
[TimeControl "180+1"]
[Date "2022.10.26"]
[WhiteClock "0:00:11"]
[BlackClock "0:00:11"]

1. c4 {[%clk 0:03:00]}  e5 {[%clk 0:02:58]} 2. Nc3 {[%clk 0:03:00]}  Nf6 {[%clk 0:02:58]} 3. g3 {[%clk 0:03:01]}  d5 {[%clk 0:02:57]} 4. cxd5 {[%clk 0:03:02]}  Nxd5 {[%clk 0:02:57]} 5. Bg2 {[%clk 0:03:02]}  Nb6 {[%clk 0:02:58]} 6. d3 {[%clk 0:03:02]}  Nc6 {[%clk 0:02:58]} 7. Nf3 {[%clk 0:03:03]}  Be7 {[%clk 0:02:59]} 8. O-O {[%clk 0:03:03]}  O-O {[%clk 0:02:59]} 9. Be3 {[%clk 0:03:04]}  f5 {[%clk 0:02:57]} 10. a3 {[%clk 0:03:03]}  Bf6 {[%clk 0:02:56]} 11. Rc1 {[%clk 0:02:58]}  Be6 {[%clk 0:02:53]} 12. b4 {[%clk 0:02:52]}  a6 {[%clk 0:02:46]} 13. b5 {[%clk 0:02:50]}  axb5 {[%clk 0:02:45]} 14. Nxb5 {[%clk 0:02:51]}  Nd5 {[%clk 0:02:43]} 15. Bc5 {[%clk 0:02:48]}  Rf7 {[%clk 0:02:43]} 16. e4 {[%clk 0:02:43]}  Nb6 {[%clk 0:02:42]} 17. exf5 {[%clk 0:02:35]}  Bxf5 {[%clk 0:02:42]} 18. d4 {[%clk 0:02:35]}  e4 {[%clk 0:02:28]} 19. Nd2 {[%clk 0:02:28]}  Nxd4 {[%clk 0:02:07]} 20. Bxd4 {[%clk 0:01:12]}  Bxd4 {[%clk 0:02:06]} 21. Nxe4 {[%clk 0:01:12]}  Bxe4 {[%clk 0:01:39]} 22. Bxe4 {[%clk 0:01:04]}  c5 {[%clk 0:01:25]} 23. Nxd4 {[%clk 0:01:03]}  cxd4 {[%clk 0:01:25]} 24. Qb3 {[%clk 0:01:02]}  Kf8 {[%clk 0:01:19]} 25. Bxh7 {[%clk 0:00:43]}  Qd6 {[%clk 0:01:12]} 26. Qb4 {[%clk 0:00:30]}  Qxb4 {[%clk 0:00:53]} 27. axb4 {[%clk 0:00:31]}  Ra2 {[%clk 0:00:43]} 28. Rcd1 {[%clk 0:00:20]}  Rd7 {[%clk 0:00:42]} 29. Rfe1 {[%clk 0:00:16]}  g5 {[%clk 0:00:35]} 30. Re5 {[%clk 0:00:14]}  Rxh7 {[%clk 0:00:33]} 31. Rxd4 {[%clk 0:00:12]}  Rf7 {[%clk 0:00:28]} 32. Rd8+ {[%clk 0:00:10]}  Kg7 {[%clk 0:00:26]} 33. Rxg5+ {[%clk 0:00:11]}  Kh6 {[%clk 0:00:20]} 34. f4 {[%clk 0:00:11]}  Rd7 {[%clk 0:00:17]} 35. Rh8+ {[%clk 0:00:09]}  Rh7 {[%clk 0:00:17]} 36. Rh5+ {[%clk 0:00:09]}  Kxh5 {[%clk 0:00:16]} 37. Rxh7+ {[%clk 0:00:09]}  Kg4 {[%clk 0:00:16]} 38. Rxb7 {[%clk 0:00:10]}  Nc4 {[%clk 0:00:16]} 39. Rc7 {[%clk 0:00:09]}  Kf3 {[%clk 0:00:15]} 40. h4 {[%clk 0:00:08]}  Kxg3 {[%clk 0:00:14]} 41. Rg7+ {[%clk 0:00:09]}  Kf3 {[%clk 0:00:14]} 42. h5 {[%clk 0:00:09]}  Ne3 {[%clk 0:00:13]} 43. h6 {[%clk 0:00:08]}  Ng4 {[%clk 0:00:13]} 44. Rxg4 {[%clk 0:00:07]}  Kxg4 {[%clk 0:00:13]} 45. h7 {[%clk 0:00:07]}  Ra8 {[%clk 0:00:12]} 46. b5 {[%clk 0:00:08]}  Kxf4 {[%clk 0:00:10]} 47. b6 {[%clk 0:00:09]}  Kg5 {[%clk 0:00:10]} 48. b7 {[%clk 0:00:10]}  Rb8 {[%clk 0:00:10]} 49. Kf2 {[%clk 0:00:10]}  Kh6 {[%clk 0:00:10]} 50. Ke3 {[%clk 0:00:11]}  Kxh7 {[%clk 0:00:11]} 0-1


[Site "https://www.chess.com"]